Cogmind - Beta 11.1 @@@ ROGUE MODE // 2022.05.19 @ 23:28:03 Player: Lyra Result: Destroyed by H-77 Assassin with High-powered Shotgun Performance ------------- Evolutions (7) 3500 Regions Visited (24) 4800 Robots Destroyed (259) 1295 Value Destroyed (10421) 10421 Prototype IDs (49) 980 Alien Tech Used (0) 0 Bonus (5888) 5888 TOTAL SCORE: 26884 Bonus ------- High Alert Combat Kills 1069 Follower Combat Kills 1449 Entered Garrisons 1000 Used RIF Installer 2000 Aligned with FarCom 300 Met Data Miner 300 Friendly Fire -230 Cogmind --------- Core Integrity 0/1300 Matter 175/300 Energy 100/100 System Corruption 9% Temperature Cool (0) Movement Core (50) Location -3/Research Parts ------- > --- POWER (2) -------- (None) > --- PROPULSION (8) --- (None) > --- UTILITY (9) ------ Enhanced Optical Array Relay Coupler [NC] (21) > --- WEAPON (2) ------- (None) > --- INVENTORY (5) ---- Improved Matter Compressor (264) Advanced Hardlight Generator Relay Coupler [NC] (28) Peak State ------------ > --- POWER ------------ Improved Deuterium Engine Cold Fusion Reactor > --- PROPULSION ------- Improved VSS Leg Improved VSS Leg Potential Leg Potential Leg > --- UTILITY ---------- Large Storage Unit Microactuators Improved Transmission Jammer Improved Reaction Control System Improved Phase Shifter Light Regenerative Plating Improved Hardlight Generator Combat Drone Bay > --- WEAPON ----------- Chainsword Force Lance > --- INVENTORY -------- Fusion Compressor Armored Leg Energy Well Structural Scanner Microactuators Microactuators Improved Phase Shifter EM Disruption Field System Shield Relay Coupler [Hunter] Relay Coupler [Behemoth] Drone Bay Sensor Drone Bay Improved Remote Datajack Ripper [Rating: 106] Favorites ----------- Power Light Nuclear Core Engine Ion Engine Power Core Light Nuclear Core Reactor Cold Fusion Reactor Propulsion Potential Leg Treads Light Treads Leg Potential Leg Wheel Compact Wheel Hover Unit Backup Propulsion III Flight Unit VTOL Module Utility Hacking Suite Device Microactuators Storage Large Storage Unit Processor 0b10 Decoder Chip [Scout] Hackware Hacking Suite Protection Layered Light Armor Plating Weapon Improved Assault Rifle Energy Gun Particle Gun Energy Cannon Plasma Cannon Ballistic Gun Improved Assault Rifle Ballistic Cannon Advanced Assault Cannon Launcher Mini Grenade Launcher Special Weapon Improved Remote Datajack Impact Weapon Great Maul Slashing Weapon Ripper Piercing Weapon Force Lance Special Melee Weapon Improved Datajack Build | -11 -10 -10 -9 -9 -9 -8 -8 -8 -8 -7 -7 -7 -7 -6 -6 -5 -5 -5 -5 -4 -4 -4 -4 -3 ------- Run | Scr Mat Min Mat Min Exi Min Mat Gar Mat Fac Low Low Dat Pro Fac Fac Gar Fac Gar Fac Gar Fac Gar Res Slots Evolved 14 | . . . 2 . . . 2 . . 2 . . . . 2 2 . . . 2 . . . 2 Power 1 | . . . . . . . . . . . . . . . . 1 . . . . . . . . Propulsion 6 | . . . 1 . . . . . . . . . . . . 1 . . . 2 . . . 2 Utility 7 | . . . 1 . . . 2 . . 2 . . . . 2 . . . . . . . . . Weapon . | . . . . . . . . . . . . . . . . . . . . . . . . . Parts Attached 488 | 7 18 6 31 2 2 . 29 53 46 26 13 11 . 7 50 34 15 71 13 13 21 5 4 11 Power 32 | 2 2 . 2 . . . 1 3 2 . . . . . 2 3 . 9 1 1 4 . . . Engine 11 | 2 2 . 2 . . . . 1 . . . . . . . 1 . 2 1 . . . . . Core 19 | . . . . . . . 1 2 2 . . . . . . 2 . 7 . 1 4 . . . Reactor 2 | . . . . . . . . . . . . . . . 2 . . . . . . . . . Propulsion 106 | 2 5 2 11 1 2 . 5 23 9 5 4 1 . . 2 4 1 13 1 2 8 1 1 3 Treads 22 | . . . . . . . 4 12 3 . . . . . . . . . . . 1 . . 2 Leg 59 | . 5 2 11 1 2 . 1 10 5 5 4 1 . . 2 4 1 3 . . . . 1 1 Wheel 8 | 2 . . . . . . . . 1 . . . . . . . . 5 . . . . . . Hover 10 | . . . . . . . . . . . . . . . . . . 5 1 2 1 1 . . Flight 7 | . . . . . . . . 1 . . . . . . . . . . . . 6 . . . Utility 229 | 1 5 1 8 . . . 5 12 19 13 7 5 . 7 40 22 14 38 10 6 5 3 3 5 Device 127 | . 1 1 . . . . 1 7 8 6 6 4 . 7 30 17 6 19 5 4 1 1 . 3 Storage 9 | 1 2 . 2 . . . . 1 1 . . . . . 1 . . 1 . . . . . . Processor 4 | . 1 . . . . . . . . . . . . . 1 . . 1 . 1 . . . . Hackware 42 | . . . 1 . . . 1 . 3 2 . . . . 6 1 8 6 2 1 4 2 3 2 Protection 47 | . 1 . 5 . . . 3 4 7 5 1 1 . . 2 4 . 11 3 . . . . . Artifact . | . . . . . . . . . . . . . . . . . . . . . . . . . Weapon 121 | 2 6 3 10 1 . . 18 15 16 8 2 5 . . 6 5 . 11 1 4 4 1 . 3 Energy Gun 21 | 1 5 1 1 . . . . 3 5 3 . . . . . . . . . 1 1 . . . Energy Cannon 2 | . . . . . . . . 2 . . . . . . . . . . . . . . . . Ballistic Gun 28 | 1 . . 6 . . . 10 5 2 2 1 1 . . . . . . . . . . . . Ballistic Cannon 8 | . . . . . . . . 1 4 . . 1 . . . . . 1 . . . . . 1 Launcher 18 | . 1 2 3 . . . 6 3 . . . . . . . . . 1 . 1 1 . . . Special Weapon 13 | . . . . . . . . . . . . . . . 2 3 . 3 1 1 1 . . 2 Impact Weapon 2 | . . . . . . . 1 1 . . . . . . . . . . . . . . . . Slashing Weapon 15 | . . . . 1 . . 1 . 3 1 1 1 . . 3 1 . 3 . . . . . . Piercing Weapon 3 | . . . . . . . . . . . . . . . . 1 . 2 . . . . . . Special Melee Weapon 11 | . . . . . . . . . 2 2 . 2 . . 1 . . 1 . 1 1 1 . . Unidentified Prototypes 7 | . . 1 1 . . . . . . . . . . . 1 1 . 2 . . . . . 1 Corrupted Parts 1 | . . . . . . . . . . . . . . . . . . 1 . . . . . . System Corruption 2 | . . . . . . . . . . . . . . . . . . 2 . . . . . . Parts Lost 94 | . 2 . 4 . . . 1 12 . 1 . . . 1 5 7 2 12 10 . 18 . 7 12 Power 7 | . . . 2 . . . 1 2 . . . . . . . . . 1 1 . . . . . Propulsion 28 | . 1 . 1 . . . . 4 . . . . . . 1 . . 5 3 . 8 . 1 4 Utility 44 | . . . . . . . . 3 . 1 . . . 1 4 7 2 3 5 . 7 . 5 6 Weapon 15 | . 1 . 1 . . . . 3 . . . . . . . . . 3 1 . 3 . 1 2 Highest Loss Streak 12 | . 1 . 1 . . . 1 3 . 1 . . . 1 4 3 2 4 5 . 7 . 7 12 To Critical Strikes 1 | . . . . . . . . . . . . . . . . . . . . . 1 . . . Average Slot Usage (%) 95 | . 96 100 99 100 100 100 91 90 99 98 99 100 100 99 99 94 99 95 73 72 83 47 50 49 Engine 3 | . 14 14 10 11 11 11 . . . . . . . . . 4 . . 1 5 . . . . Core 4 | . . . . . . . 7 5 9 7 7 7 7 7 . 2 11 8 5 1 8 . . . Reactor 1 | . . . . . . . . . . . . . . . 5 4 . . . . . . . . Treads 2 | . . . . . . . 7 15 5 . . . . . . . . . . . . . . 4 Leg 19 | . 22 28 32 33 33 33 17 8 21 23 23 23 23 23 19 22 23 12 . . . . 1 4 Hover 1 | . . . . . . . . . . . . . . . . . . 3 19 19 18 5 2 . Device 13 | . 1 3 . . . . 5 10 6 11 19 22 15 26 28 30 30 15 17 13 13 1 2 3 Storage 7 | . 14 14 11 11 11 11 9 6 9 7 7 7 7 7 6 5 5 5 . . . . . . Processor 1 | . 1 . . . . . . . . . . . . . 6 1 . . . 3 5 5 5 4 Hackware 13 | . . . 11 11 11 11 11 18 20 24 15 15 15 15 10 1 8 20 14 17 18 29 33 29 Protection 7 | . 8 10 11 11 11 11 13 8 9 7 9 7 15 3 5 7 5 8 4 . . . . . Energy Gun 3 | . 27 15 . . . . . 5 7 3 . . . . . . . . . 3 4 . . . Ballistic Gun 4 | . . . 20 17 11 11 12 6 1 3 11 3 . . . . . . . . . . . . Slashing Weapon 2 | . . . . 4 11 11 2 . 3 2 3 . . . 7 4 . . 4 . . . . . Special Melee Weapon 1 | . . . . . . . . . 1 4 . 3 7 7 3 . . . . 3 . 5 3 . Naked Turns . | . . . . . . . . . . . . . . . . . . . . . . . . . Heaviest Build 122 | 13 32 41 36 36 36 36 54 119 122 49 61 65 59 59 61 89 80 85 55 32 51 3 3 16 Greatest Support 110 | 32 32 20 30 33 73 73 73 76 66 54 62 72 72 72 76 90 90 90 51 39 42 3 3 110 Greatest Overweight (x) 11 | . 1 2 1 1 2 . 1 8 11 1 1 . . . . 1 . 2 1 1 1 . . 1 Average Overweight (x) . | . . 1 . 1 . . . . . . . . . . . . . . . . . . . . Largest Inventory Capacity 25 | 8 15 15 15 15 15 15 15 25 25 15 15 15 15 15 15 15 15 15 15 5 5 5 5 5 Average Capacity 14 | 5 10 15 15 15 15 15 15 19 17 15 15 15 15 15 15 15 15 15 5 5 5 5 5 5 Most Carried 25 | 1 14 15 15 15 15 15 15 25 25 15 15 15 15 15 15 15 15 15 15 5 5 5 5 5 Average Carried 14 | . 9 14 14 15 15 15 14 18 17 14 14 15 15 14 14 14 13 14 4 4 4 4 5 4 Final Capacity 25 | 8 15 15 15 15 15 15 15 25 15 15 15 15 15 15 15 15 15 15 5 5 5 5 5 5 Final Carried 25 | 1 14 14 15 15 15 15 15 25 15 15 15 15 15 15 15 12 15 15 5 5 5 5 5 3 Class Distribution -------------------- 31% | Mutant 27% | Scavenger-Mutant 16% | Hacker-Mutant 15% | Bothacker-Mutant 3% | Derelict-Mutant Dominant Class ---------------- Mutant | -10/Materials Mutant | -10/Mines Scavenger-Mutant | -9/Materials Scavenger-Mutant | -9/Mines Mutant | -9/Exiles Mutant | -8/Mines Mutant | -8/Materials Scavenger-Mutant | -8/Garrison Hacker-Mutant | -8/Materials Bothacker-Mutant | -7/Factory Mutant | -7/Lower Caves Mutant | -7/Lower Caves Mutant | -7/Data Miner Mutant | -6/Proximity Caves Hacker-Mutant | -6/Factory Machinist-Mutant | -5/Factory Bothacker-Mutant | -5/Garrison Bothacker-Mutant | -5/Factory Hacker-Mutant | -5/Garrison Hacker-Mutant | -4/Factory Hacker-Mutant | -4/Garrison Hacker-Mutant | -4/Factory Botlord-Mutant | -4/Garrison Mutant | -3/Research Resources | -11 -10 -10 -9 -9 -9 -8 -8 -8 -8 -7 -7 -7 -7 -6 -6 -5 -5 -5 -5 -4 -4 -4 -4 -3 ----------- Run | Scr Mat Min Mat Min Exi Min Mat Gar Mat Fac Low Low Dat Pro Fac Fac Gar Fac Gar Fac Gar Fac Gar Res Matter Collected 8164 | 270 254 67 944 57 . . 470 866 845 269 24 297 . 287 549 401 289 819 61 22 836 . 65 472 Remotely 383 | . . . . . . . . 383 . . . . . . . . . . . . . . . . Salvage Created 9574 | . 883 43 1447 73 . . 735 885 1247 209 . 179 . . 952 753 213 1606 117 22 210 . . . Parts 552 | . 49 16 106 7 . . 42 58 56 11 . 3 . . 51 51 14 60 5 5 18 . . . Haulers Intercepted 12 | . 2 . 3 . . . 2 . 3 . . . . . . . . 2 . . . . . . Recyclers Shooed 8 | . 1 . 1 1 . . . . 3 1 . . . . . . . 1 . . . . . . Parts Field Recycled . | . . . . . . . . . . . . . . . . . . . . . . . . . Retrieved Matter . | . . . . . . . . . . . . . . . . . . . . . . . . . Parts Self-Destructed 8 | . . . . . . . . . . . . 4 . 4 . . . . . . . . . . Prevented . | . . . . . . . . . . . . . . . . . . . . . . . . . Kills | -11 -10 -10 -9 -9 -9 -8 -8 -8 -8 -7 -7 -7 -7 -6 -6 -5 -5 -5 -5 -4 -4 -4 -4 -3 ------- Run | Scr Mat Min Mat Min Exi Min Mat Gar Mat Fac Low Low Dat Pro Fac Fac Gar Fac Gar Fac Gar Fac Gar Res Combat Hostiles Destroyed 191 | . 16 10 38 3 . . 17 30 18 4 . 2 . . 14 12 4 10 2 . 11 . . . Melee 50 | . . . . . . . 4 1 3 . . . . . 14 12 4 10 2 . . . . . Guns 84 | . 12 . 29 3 . . 4 14 11 4 . . . . . . . . . . 7 . . . Cannons 9 | . . . . . . . . 5 3 . . 1 . . . . . . . . . . . . AOE 46 | . 3 10 9 . . . 8 10 1 . . 1 . . . . . . . . 4 . . . Classes Destroyed 14 | . 8 . 1 1 . . 1 1 . 1 . . . . . . 1 . . . . . . . Worker 8 | . 2 . 1 . . . 1 . 1 1 . . . . . . . 2 . . . . . . Builder 10 | . 1 . . 1 . . 3 . 1 . . . . . 1 . . 2 . 1 . . . . Tunneler 2 | . . . . 1 . . . . 1 . . . . . . . . . . . . . . . Hauler 12 | . 2 . 3 . . . 2 . 3 . . . . . . . . 2 . . . . . . Recycler 16 | . 2 . . . . . 1 . 6 . . . . . 1 1 . 5 . . . . . . Operator 12 | . 3 . 4 . . . . . . . . . . . 2 2 . 1 . . . . . . Watcher 7 | . 3 . 2 . . . 1 . . . . . . . . . . 1 . . . . . . Swarmer 60 | . 3 10 13 3 . . 4 11 3 . . . . . 2 2 1 . . . 8 . . . Grunt 77 | . 13 . 16 . . . 7 10 11 3 . . . . 6 5 1 3 2 . . . . . Brawler 1 | . . . . . . . . 1 . . . . . . . . . . . . . . . . Sentry 26 | . . . 9 . . . 4 7 2 . . . . . 2 . 1 1 . . . . . . Specialist 2 | . . . . . . . . . . . . . . . . . 2 . . . . . . . Hunter 8 | . . . . . . . 2 1 2 . . . . . . 1 . 2 . . . . . . Programmer 16 | . . . . . . . . . . 1 . . . . 4 4 . 4 . . 3 . . . Packrat 2 | . . . . . . . . . . . . 2 . . . . . . . . . . . . Thug 1 | . . . . . . . . . . . . 1 . . . . . . . . . . . . Savage 1 | . . . . . . . . . . . . 1 . . . . . . . . . . . . Best Kill Streak 10 | . 10 3 9 3 . . 6 7 3 3 . 1 . . 3 2 3 2 2 1 7 . . . Combat Bots Only 8 | . 5 3 8 3 . . 6 7 3 2 . 1 . . 3 2 3 2 2 . 7 . . . Max Kills in Single Turn 3 | . 3 3 3 1 . . 3 2 1 2 . 1 . . 2 1 1 1 1 1 3 . . . Gunslinging . | . . . . . . . . . . . . . . . . . . . . . . . . . Exploded 3 | . 2 3 3 . . . 3 2 1 . . 1 . . . . . . . . 3 . . . Melee 2 | . . . . . . . 1 1 1 . . . . . 2 1 1 1 1 . . . . . Uniques/NPCs Destroyed . | . . . . . . . . . . . . . . . . . . . . . . . . . Combat | -11 -10 -10 -9 -9 -9 -8 -8 -8 -8 -7 -7 -7 -7 -6 -6 -5 -5 -5 -5 -4 -4 -4 -4 -3 -------- Run | Scr Mat Min Mat Min Exi Min Mat Gar Mat Fac Low Low Dat Pro Fac Fac Gar Fac Gar Fac Gar Fac Gar Res Damage Taken 18582 | . 464 184 1157 72 . . 591 2095 843 633 25 154 . 170 1193 1518 604 2307 1370 . 1826 . 752 2624 Core 4307 | . 159 27 206 19 . . 60 244 69 28 . 17 . 57 139 92 126 363 307 . 642 . 441 1311 Absorbed by Shields 1354 | . . . . . . . 153 . 107 24 . 32 . 20 284 240 108 189 . . 142 . 55 . Redirected to Shielding 220 | . . . . . . . . . . . . . . . . 101 . 59 60 . . . . . Regen/Repaired (Parts) 962 | . . . . . . . . . . . . . . . . 109 140 680 33 . . . . . Core Remaining (%) 48 | 100 . 25 . . . 43 . . 32 . . . . 85 83 . . . 11 . . . 5 . Volleys Fired 488 | . 54 9 103 4 . . 25 82 74 22 . 16 . 9 11 5 12 14 2 3 23 . . 20 Largest 2 | . 2 2 2 2 . . 2 2 2 2 . 2 . 1 1 1 1 1 1 1 2 . . 1 Hottest 141 | . 130 95 130 46 . . 72 126 126 141 . 73 . 48 5 7 7 7 7 65 114 . . 10 Shots Fired 775 | . 103 10 199 8 . . 47 135 101 44 . 21 . 9 11 5 12 14 2 3 31 . . 20 Gun 578 | . 101 4 191 8 . . 33 97 72 44 . 5 . . . . . . . 2 21 . . . Cannon 82 | . . . . . . . . 28 29 . . 16 . 9 . . . . . . . . . . Launcher 49 | . 2 6 8 . . . 14 10 . . . . . . . . . . . . 9 . . . Special 66 | . . . . . . . . . . . . . . . 11 5 12 14 2 1 1 . . 20 Kinetic 430 | . . . 183 8 . . 33 81 57 38 . 21 . 9 . . . . . . . . . . Thermal 230 | . 101 4 8 . . . . 44 44 6 . . . . . . . . . 2 21 . . . Explosive 49 | . 2 6 8 . . . 14 10 . . . . . . . . . . . . 9 . . . Electromagnetic . | . . . . . . . . . . . . . . . . . . . . . . . . . Robot Hit Streak 20 | . 10 1 14 4 . . 10 20 11 9 . 8 . 2 3 2 3 7 6 9 6 . . 8 Robot Miss Streak 5 | . 4 3 4 1 . . 2 5 5 3 . 4 . 3 5 2 4 1 . . 2 . . 1 Penetration Max 1 | . . . . . . . . . 1 . . . . . . . . . . . . . . . Secondary Targets 1 | . . . . . . . . . 1 . . . . . . . . . . . . . . . Max Gunslinging Chain 1 | . . . . . . . . . 1 . . . . . . . . . . . . . . . Shots Hit Robots 756 | . 61 2 133 9 . . 50 98 99 36 . 19 . 5 68 38 13 71 13 7 17 . 1 16 Core Hits 368 | . 37 11 68 5 . . 39 54 39 12 . 4 . 1 24 18 7 24 4 1 20 . . . Critical Kills 2 | . . . 2 . . . . . . . . . . . . . . . . . . . . . Critical Parts Destroyed 3 | . . . 1 . . . 2 . . . . . . . . . . . . . . . . . Critical Strikes 51 | . 3 . 4 . . . 5 . 4 . . . . . 8 11 1 14 1 . . . . . Burn 5 | . 3 . 1 . . . . . 1 . . . . . . . . . . . . . . . Destroy 3 | . . . 3 . . . . . . . . . . . . . . . . . . . . . Blast 3 | . . . . . . . . . 3 . . . . . . . . . . . . . . . Smash 2 | . . . . . . . 2 . . . . . . . . . . . . . . . . . Sever 16 | . . . . . . . 3 . . . . . . . 8 2 . 2 1 . . . . . Impale 22 | . . . . . . . . . . . . . . . . 9 1 12 . . . . . . Melee Attacks 366 | . . . . 4 . . 26 10 36 5 1 6 . . 91 58 17 85 18 6 2 . 1 . Impact 18 | . . . . . . . 8 10 . . . . . . . . . . . . . . . . Slashing 178 | . . . . 4 . . 18 . 19 . 1 2 . . 88 10 . 18 18 . . . . . Piercing 128 | . . . . . . . . . . . . . . . . 48 17 63 . . . . . . Sneak Attacks 65 | . . . . 3 . . 1 . 22 4 . 6 . . 4 4 . 18 . 3 . . . . Combat Hostiles 2 | . . . . . . . . . . . . . . . . 1 . 1 . . . . . . Follow-up Attacks 13 | . . . . . . . 3 . . . . . . . 6 4 . . . . . . . . Damage Inflicted 22551 | . 1335 582 2678 363 . . 2115 2651 2475 658 . 510 . 149 2434 1627 422 2896 422 53 1163 . 18 . Guns 6528 | . 999 16 2082 75 . . 379 1069 858 598 . 74 . . . . . . . 53 325 . . . Cannons 1605 | . . . . . . . . 545 623 . . 288 . 149 . . . . . . . . . . Explosions 4506 | . 329 563 591 . . . 991 931 133 . . . . . . . 130 . . . 838 . . . Melee 9697 | . . . . 288 . . 714 106 837 . . 148 . . 2417 1627 292 2863 405 . . . . . Ramming 215 | . 7 3 5 . . . 31 . 24 60 . . . . 17 . . 33 17 . . . 18 . Kinetic 5243 | . . . 2007 75 . . 379 947 878 446 . 362 . 149 . . . . . . . . . . Thermal 2890 | . 999 16 75 . . . . 667 603 152 . . . . . . . . . 53 325 . . . Explosive 4506 | . 329 563 591 . . . 991 931 133 . . . . . . . 130 . . . 838 . . . Electromagnetic . | . . . . . . . . . . . . . . . . . . . . . . . . . Impact 312 | . . . . . . . 206 106 . . . . . . . . . . . . . . . . Slashing 5368 | . . . . 288 . . 508 . 837 . . 148 . . 2417 230 . 535 405 . . . . . Piercing 4017 | . . . . . . . . . . . . . . . . 1397 292 2328 . . . . . . Highest Corruption 21 | . . . . . . . . . 1 . . . . . 1 11 11 21 21 . 1 1 1 9 Average Corruption 7 | . . . . . . . . . 1 . . . . . 1 5 11 13 21 . 1 1 1 5 Corruption Purged 1 | . . . . . . . . . . . . . . . 1 . . . . . . . . . Corruption Blocked . | . . . . . . . . . . . . . . . . . . . . . . . . . Effects 193 | . . . . . . . . . . . . . . . 15 20 40 91 16 . 4 . 2 5 Message Errors 47 | . . . . . . . . . . . . . . . 1 4 14 24 2 . 1 . . 1 Matter Fused 45 | . . . . . . . . . . . . . . . 8 5 11 15 3 . 1 . . 2 Heat Flow Errors 27 | . . . . . . . . . . . . . . . . 3 7 14 3 . . . . . Energy Discharges 24 | . . . . . . . . . . . . . . . . . 1 18 3 . 1 . . 1 Parts Rejected 2 | . . . . . . . . . . . . . . . . . . 1 1 . . . . . Data Loss (minor) 26 | . . . . . . . . . . . . . . . 5 6 3 10 . . . . 1 1 Data Loss (major) 11 | . . . . . . . . . . . . . . . 1 2 2 4 1 . . . 1 . Misfires 1 | . . . . . . . . . . . . . . . . . . . . . 1 . . . Alerts 3 | . . . . . . . . . . . . . . . . . 2 1 . . . . . . Misdirections 7 | . . . . . . . . . . . . . . . . . . 4 3 . . . . . Overload Shots . | . . . . . . . . . . . . . . . . . . . . . . . . . Overflow Damage 1498 | . 6 26 39 108 . . 131 44 160 . . 76 . . 45 95 . 548 41 . 179 . . . Projectiles 3 | . . . . . . . . 3 . . . . . . . . . . . . . . . . Explosions 427 | . 6 26 39 . . . 46 41 49 . . . . . . . . . 41 . 179 . . . Melee 1068 | . . . . 108 . . 85 . 111 . . 76 . . 45 95 . 548 . . . . . . Knockbacks 8 | . . . . . . . . 2 4 . . . . 2 . . . . . . . . . . Impact . | . . . . . . . . . . . . . . . . . . . . . . . . . Kinetic 8 | . . . . . . . . 2 4 . . . . 2 . . . . . . . . . . Secondary . | . . . . . . . . . . . . . . . . . . . . . . . . . Self-Inflicted Damage 751 | . 1 123 10 . . . . 4 34 . . . . . . . 151 12 163 . 245 . 8 . Shots 13 | . . 4 1 . . . . 1 1 . . . . . . . 1 . 1 . 4 . . . Rammed 12 | . 1 . . . . . . . . . . . . . . . . 4 1 . . . 3 3 Targets Rammed 37 | . 4 1 4 . . . 3 . 3 8 . . . . 1 . . 6 1 . . . 3 3 Kicked 25 | . 3 1 4 . . . 3 . 3 8 . . . . 1 . . 2 . . . . . . Crushed . | . . . . . . . . . . . . . . . . . . . . . . . . . Highest Temperature 517 | . 517 60 294 . . . 106 189 436 109 . 114 . 1 . 268 271 274 181 9 323 . . . Average Temperature 100 | . 152 26 67 . . . 25 44 129 51 . 56 . 1 . 99 106 96 44 8 121 . . . Received Heat Transfer 4280 | . 222 . 315 . . . 243 963 307 343 . 79 . 54 402 226 121 264 501 . 108 . 9 123 Effects 15 | . 8 . . . . . . . 6 . . . . . . 1 . . . . . . . . Shutdowns 5 | . 3 . . . . . . . 2 . . . . . . . . . . . . . . . Energy Bleed 5 | . 2 . . . . . . . 2 . . . . . . 1 . . . . . . . . Matter Decay 2 | . 1 . . . . . . . 1 . . . . . . . . . . . . . . . Short Circuit 2 | . 1 . . . . . . . 1 . . . . . . . . . . . . . . . Damage (minor) 1 | . 1 . . . . . . . . . . . . . . . . . . . . . . . Siege Activations . | . . . . . . . . . . . . . . . . . . . . . . . . . Robots Corrupted . | . . . . . . . . . . . . . . . . . . . . . . . . . Combat Hostiles . | . . . . . . . . . . . . . . . . . . . . . . . . . Parts Fried 1 | . . . . . . . 1 . . . . . . . . . . . . . . . . . Impact Corruptions 2 | . . . . . . . 2 . . . . . . . . . . . . . . . . . Robots Melted 1 | . 1 . . . . . . . . . . . . . . . . . . . . . . . Combat Hostiles 1 | . 1 . . . . . . . . . . . . . . . . . . . . . . . Parts Melted 12 | . 6 . 1 . . . . 2 1 1 . . . . 1 . . . . . . . . . Heat Transferred 6428 | . 2590 37 259 . . . . 1414 1369 261 . . . . . . . . . 74 424 . . . Parts Sabotaged . | . . . . . . . . . . . . . . . . . . . . . . . . . Parts Stolen . | . . . . . . . . . . . . . . . . . . . . . . . . . Parts Stripped . | . . . . . . . . . . . . . . . . . . . . . . . . . Power Chain Reactions . | . . . . . . . . . . . . . . . . . . . . . . . . . Missiles Intercepted . | . . . . . . . . . . . . . . . . . . . . . . . . . Alert | -11 -10 -10 -9 -9 -9 -8 -8 -8 -8 -7 -7 -7 -7 -6 -6 -5 -5 -5 -5 -4 -4 -4 -4 -3 ------- Run | Scr Mat Min Mat Min Exi Min Mat Gar Mat Fac Low Low Dat Pro Fac Fac Gar Fac Gar Fac Gar Fac Gar Res Peak Influence 1373 | . 376 369 569 202 . . 583 914 547 114 . . . . 244 1089 1373 856 790 451 688 328 229 138 Initial 720 | . . 54 109 202 . . . 113 445 74 . . . . . 74 695 720 503 390 315 298 229 96 Average 371 | . 173 238 333 78 . . 228 666 393 42 . . . . 72 459 1008 663 649 423 570 311 204 97 Maximum Alert Level 4 | . 1 1 2 1 . . 2 3 2 . . . . . 1 3 4 3 3 2 2 1 1 . Low Security (%) 41 | 100 55 53 23 65 . 100 59 7 11 100 . . . . 97 43 . . . . . . 46 100 Level 1 15 | . 44 46 32 34 . . 22 8 24 . . . . . 2 14 . . . 8 13 100 53 . Level 2 26 | . . . 44 . . . 18 32 63 . . . . . . 12 1 75 65 91 86 . . . Level 3 14 | . . . . . . . . 51 . . . . . . . 30 56 24 34 . . . . . Level 4 1 | . . . . . . . . . . . . . . . . . 41 . . . . . . . Level 5 . | . . . . . . . . . . . . . . . . . . . . . . . . . High Security . | . . . . . . . . . . . . . . . . . . . . . . . . . Max Security . | . . . . . . . . . . . . . . . . . . . . . . . . . Squads Dispatched 72 | . 5 . 8 . . . 2 . 4 4 . . . . 19 15 . 7 . 3 . 1 . 4 Investigation 34 | . 2 . 5 . . . 1 . 2 2 . . . . 10 5 . 3 . 2 . 1 . 1 Extermination 12 | . . . . . . . . . . 2 . . . . 4 3 . 2 . . . . . 1 Reinforcement 18 | . 3 . 3 . . . 1 . 2 . . . . . 2 3 . 2 . . . . . 2 Assault 2 | . . . . . . . . . . . . . . . . 2 . . . . . . . . Garrison 6 | . . . . . . . . . . . . . . . 3 2 . . . 1 . . . . Intercept . | . . . . . . . . . . . . . . . . . . . . . . . . . Searches Triggered . | . . . . . . . . . . . . . . . . . . . . . . . . . Data Miner Redirects 12 | . . . . . . . . . . . . . . . 6 2 . 1 . 2 . . . 1 Construction Impeded . | . . . . . . . . . . . . . . . . . . . . . . . . . Haulers Reinforced 1 | . . . . . . . . . . . . . . . . . . 1 . . . . . . Active Scanning Responses . | . . . . . . . . . . . . . . . . . . . . . . . . . Cargo Convoy Interrupts 1 | . . . . . . . . . . . . . . . . 1 . . . . . . . . Stealth | -11 -10 -10 -9 -9 -9 -8 -8 -8 -8 -7 -7 -7 -7 -6 -6 -5 -5 -5 -5 -4 -4 -4 -4 -3 --------- Run | Scr Mat Min Mat Min Exi Min Mat Gar Mat Fac Low Low Dat Pro Fac Fac Gar Fac Gar Fac Gar Fac Gar Res Distress Signals 24 | . 1 . 8 . . . 2 . 6 . . . . . 4 1 . . . . . . . 2 Communications Jammed 4 | . . . . . . . . . . . . . . . . . . 4 . . . . . . Distress Signals 4 | . . . . . . . . . . . . . . . . . . 4 . . . . . . Times Spotted 445 | . 26 12 58 3 . . 28 34 28 10 1 3 . 8 35 59 21 41 19 3 16 . 9 31 Peak Tracking Total 17 | . 3 3 7 3 . . 9 5 3 4 1 3 . 5 5 17 6 4 9 2 7 . 9 16 Tactical Retreats 31 | . 1 1 3 . . . 1 4 2 . 1 . . . 2 7 1 3 3 . 1 . . 1 Traps | -11 -10 -10 -9 -9 -9 -8 -8 -8 -8 -7 -7 -7 -7 -6 -6 -5 -5 -5 -5 -4 -4 -4 -4 -3 ------- Run | Scr Mat Min Mat Min Exi Min Mat Gar Mat Fac Low Low Dat Pro Fac Fac Gar Fac Gar Fac Gar Fac Gar Res Traps Triggered 30 | . 2 . 1 . . . . 5 . . . . . . 1 3 4 2 3 . 5 . 2 2 Indirectly . | . . . . . . . . . . . . . . . . . . . . . . . . . Trap Hack Attempts 18 | . . . . . . . . . . . . . . . 18 . . . . . . . . . Triggered 1 | . . . . . . . . . . . . . . . 1 . . . . . . . . . Disarmed . | . . . . . . . . . . . . . . . . . . . . . . . . . Reprogrammed 1 | . . . . . . . . . . . . . . . 1 . . . . . . . . . Reused 2 | . . . . . . . . . . . . 1 . . 1 . . . . . . . . . Traps Extracted . | . . . . . . . . . . . . . . . . . . . . . . . . . Installed 6 | . . . . . . . . . . . . 6 . . . . . . . . . . . . Triggered 1 | . . . . . . . . . . . . . . . 1 . . . . . . . . . Machines | -11 -10 -10 -9 -9 -9 -8 -8 -8 -8 -7 -7 -7 -7 -6 -6 -5 -5 -5 -5 -4 -4 -4 -4 -3 ---------- Run | Scr Mat Min Mat Min Exi Min Mat Gar Mat Fac Low Low Dat Pro Fac Fac Gar Fac Gar Fac Gar Fac Gar Res Machines Disabled 45 | . 1 4 2 . . . 3 3 3 . . . . . 3 13 7 . 3 . 3 . . . Max in Single Turn 2 | . 1 2 1 . . . 1 1 2 . . . . . . 1 2 . 2 . 1 . . . Garrison Access 4 | . . . . . . . . . 1 . . . . . 1 2 . . . . . . . . Garrison Relay 11 | . . . . . . . . 3 . . . . . . . . 4 . 1 . 2 . 1 . Phase Generator 2 | . . . . . . . . . . . . . . . . . 1 . 1 . . . . . Machines Sabotaged . | . . . . . . . . . . . . . . . . . . . . . . . . . Garrisons Compromised . | . . . . . . . . . . . . . . . . . . . . . . . . . Overloaded Fab Kills . | . . . . . . . . . . . . . . . . . . . . . . . . . Hacking | -11 -10 -10 -9 -9 -9 -8 -8 -8 -8 -7 -7 -7 -7 -6 -6 -5 -5 -5 -5 -4 -4 -4 -4 -3 --------- Run | Scr Mat Min Mat Min Exi Min Mat Gar Mat Fac Low Low Dat Pro Fac Fac Gar Fac Gar Fac Gar Fac Gar Res Machines Accessed 80 | . 4 1 11 . 1 . 3 . 8 4 1 . 4 . 22 5 . 8 . 4 . 1 . 3 Terminals 36 | . 2 . 7 . . . 1 . 6 2 . . . . 11 . . 4 . 1 . . . 2 Fabricators 10 | . . . . . . . . . . 2 . . . . 5 2 . 1 . . . . . . Repair Stations 3 | . . . 1 . . . . . . . . . . . . . . . . 2 . . . . Recycling Units 12 | . 2 . 2 . . . 1 . . . . . . . 3 1 . 2 . . . . . 1 Scanalyzers 3 | . . . 1 . . . . . 1 . . . . . 1 . . . . . . . . . Garrison Access 9 | . . . . . . . 1 . 1 . . . . . 2 2 . 1 . 1 . 1 . . Total Hacks 250 | . 11 1 32 . 1 . 5 . 37 9 1 . 27 . 73 12 . 25 . 9 . 2 . 5 Successful 169 | . 5 1 23 . 1 . 5 . 27 6 1 . 27 . 47 7 . 12 . 3 . 2 . 2 Failed 79 | . 6 . 8 . . . . . 9 3 . . . . 26 5 . 13 . 6 . . . 3 Catastrophic 16 | . 1 . . . . . . . . . . . . . 6 1 . 4 . 2 . . . 2 Database Lockouts 2 | . . . 1 . . . . . 1 . . . . . . . . . . . . . . . Manual 116 | . 7 . 18 . 1 . 1 . 26 5 . . . . 36 5 . 12 . . . 1 . 4 Terminals 118 | . 5 . 22 . . . 3 . 32 6 . . . . 34 . . 10 . 3 . . . 3 Fabricators 32 | . . . . . . . . . . 3 . . . . 22 4 . 3 . . . . . . Repair Stations 7 | . . . 2 . . . . . . . . . . . . . . . . 5 . . . . Recycling Units 33 | . 6 . 5 . . . 1 . . . . . . . 6 5 . 8 . . . . . 2 Scanalyzers 8 | . . . 3 . . . . . 3 . . . . . 2 . . . . . . . . . Garrison Access 22 | . . . . . . . 1 . 2 . . . . . 9 3 . 4 . 1 . 2 . . Terminal Hacks 80 | . 1 1 13 . 1 . 3 . 13 2 1 . 27 . 14 . . 3 . 1 . . . . Record 11 | . . . . . . . . . . . . . 11 . . . . . . . . . . . Part Schematic 19 | . . . . . . . . . 3 . . . 8 . 7 . . . . 1 . . . . Robot Schematic 5 | . . . . . . . . . . . . . 5 . . . . . . . . . . . Robot Analysis 3 | . 1 . 2 . . . . . . . . . . . . . . . . . . . . . Prototype ID Bank 6 | . . . 1 . . . . . 1 . . . 3 . 1 . . . . . . . . . Open Door 2 | . . 1 . . . . . . . . 1 . . . . . . . . . . . . . Level Access Points 2 | . . . 1 . . . . . 1 . . . . . . . . . . . . . . . Branch Access Points 2 | . . . . . . . . . 1 . . . . . . . . 1 . . . . . . Terminal Index 4 | . . . 1 . . . . . 1 . . . . . 1 . . 1 . . . . . . Fabricator Index 2 | . . . . . . . . . . 1 . . . . . . . 1 . . . . . . Repair Station Index 1 | . . . 1 . . . . . . . . . . . . . . . . . . . . . Recycling Unit Index 2 | . . . 1 . . . . . . 1 . . . . . . . . . . . . . . Scanalyzer Index 2 | . . . 1 . . . . . 1 . . . . . . . . . . . . . . . Alert Level 3 | . . . 2 . . . 1 . . . . . . . . . . . . . . . . . Unreport Threat 10 | . . . 3 . . . 2 . 3 . . . . . 2 . . . . . . . . . Locate Traps 1 | . . . . . . . . . . . . . . . 1 . . . . . . . . . Extermination Status 1 | . . . . . . . . . . . . . . . 1 . . . . . . . . . Recall Reinforcements 1 | . . . . . . . . . 1 . . . . . . . . . . . . . . . Zone Layout 2 | . . . . . . . . . 1 . . . . . 1 . . . . . . . . . EX-Prototype ID Bank 1 | . . . . . 1 . . . . . . . . . . . . . . . . . . . Fabricator Hacks 15 | . . . . . . . . . . 2 . . . . 10 2 . 1 . . . . . . Network Status 1 | . . . . . . . . . . . . . . . 1 . . . . . . . . . Load Schematic 8 | . . . . . . . . . . 1 . . . . 5 1 . 1 . . . . . . Build 6 | . . . . . . . . . . 1 . . . . 4 1 . . . . . . . . Repair Station Hacks 2 | . . . 1 . . . . . . . . . . . . . . . . 1 . . . . Scan Component 1 | . . . 1 . . . . . . . . . . . . . . . . . . . . . Refit 1 | . . . . . . . . . . . . . . . . . . . . 1 . . . . Recycling Unit Hacks 10 | . 1 . 2 . . . . . . . . . . . 3 1 . 2 . . . . . 1 Report Inventory 4 | . . . 1 . . . . . . . . . . . 2 . . 1 . . . . . . Retrieve Components 6 | . 1 . 1 . . . . . . . . . . . 1 1 . 1 . . . . . 1 Scanalyzer 5 | . . . . . . . . . 3 . . . . . 2 . . . . . . . . . Insert Component 3 | . . . . . . . . . 2 . . . . . 1 . . . . . . . . . Analyze 2 | . . . . . . . . . 1 . . . . . 1 . . . . . . . . . Garrison Access Hacks 13 | . . . . . . . 1 . 2 . . . . . 4 2 . 2 . 1 . 1 . . Unlock Access 5 | . . . . . . . 1 . . . . . . . . 1 . 1 . 1 . 1 . . Seal Access 2 | . . . . . . . . . 1 . . . . . 1 . . . . . . . . . Coupler Status 6 | . . . . . . . . . 1 . . . . . 3 1 . 1 . . . . . . Unauthorized Hacks 44 | . 3 . 7 . . . 1 . 9 2 . . . . 14 2 . 4 . . . 1 . 1 Terminals 21 | . 1 . 3 . . . . . 9 1 . . . . 5 . . 1 . . . . . 1 Track 3 | . . . . . . . . . 2 . . . . . 1 . . . . . . . . . Assimilate 5 | . . . . . . . . . 2 1 . . . . 1 . . . . . . . . 1 Botnet 12 | . 1 . 3 . . . . . 4 . . . . . 3 . . 1 . . . . . . Disrupt 1 | . . . . . . . . . 1 . . . . . . . . . . . . . . . Fabricators 6 | . . . . . . . . . . 1 . . . . 5 . . . . . . . . . Fabnet 5 | . . . . . . . . . . 1 . . . . 4 . . . . . . . . . Recompile 1 | . . . . . . . . . . . . . . . 1 . . . . . . . . . Repair Stations 1 | . . . 1 . . . . . . . . . . . . . . . . . . . . . Mechanics 1 | . . . 1 . . . . . . . . . . . . . . . . . . . . . Recycling Units 8 | . 2 . 2 . . . 1 . . . . . . . . 1 . 2 . . . . . . Reject 4 | . 1 . 1 . . . . . . . . . . . . 1 . 1 . . . . . . Mask 3 | . 1 . 1 . . . . . . . . . . . . . . 1 . . . . . . Tunnel 1 | . . . . . . . 1 . . . . . . . . . . . . . . . . . Scanalyzers 1 | . . . 1 . . . . . . . . . . . . . . . . . . . . . Extract 1 | . . . 1 . . . . . . . . . . . . . . . . . . . . . Garrison Access 7 | . . . . . . . . . . . . . . . 4 1 . 1 . . . 1 . . Restock 2 | . . . . . . . . . . . . . . . 2 . . . . . . . . . Reprogram 3 | . . . . . . . . . . . . . . . 1 1 . 1 . . . . . . Eject 2 | . . . . . . . . . . . . . . . 1 . . . . . . 1 . . Data Cores Recovered 1 | . . . 1 . . . . . . . . . . . . . . . . . . . . . Used . | . . . . . . . . . . . . . . . . . . . . . . . . . Hacking Detections 65 | . 4 . 10 . . . 2 . 6 3 . . . . 20 5 . 7 . 4 . 1 . 3 Full Trace Events 23 | . 1 . 3 . . . . . 2 2 . . . . 7 3 . 3 . 2 . . . . Feedback Events 2 | . . . . . . . . . 1 . . . . . . 1 . . . . . . . . Corruption 2 | . . . . . . . . . 1 . . . . . . 1 . . . . . . . . Feedback Blocked . | . . . . . . . . . . . . . . . . . . . . . . . . . Robot Schematics Acquired 5 | . . . . . . . . . . . . . 5 . . . . . . . . . . . Robots Built 1 | . . . . . . . . . . . . . . . 1 . . . . . . . . . Authchips 1 | . . . . . . . . . . . . . . . 1 . . . . . . . . . Time 58 | . . . . . . . . . . . . . . . 58 . . . . . . . . . Total Robot Build Rating 3 | . . . . . . . . . . . . . . . 3 . . . . . . . . . Part Schematics Acquired 28 | . . . 7 . . . . . 4 . . . 8 . 8 . . . . 1 . . . . Parts Built 8 | . . . . . . . . . . 2 . . . . 5 1 . . . . . . . . Authchips . | . . . . . . . . . . . . . . . . . . . . . . . . . Time 440 | . . . . . . . . . . 73 . . . . 215 152 . . . . . . . . Total Part Build Rating 35 | . . . . . . . . . . 6 . . . . 24 5 . . . . . . . . Parts Repaired . | . . . . . . . . . . . . . . . . . . . . . . . . . Time . | . . . . . . . . . . . . . . . . . . . . . . . . . Parts Recycled . | . . . . . . . . . . . . . . . . . . . . . . . . . Recycled Matter . | . . . . . . . . . . . . . . . . . . . . . . . . . Retrieved Matter . | . . . . . . . . . . . . . . . . . . . . . . . . . Retrieved Components 29 | . 7 . 10 . . . . . . . . . . . 3 1 . 7 . . . . . 1 Parts Scanalyzed 2 | . . . . . . . . . 1 . . . . . 1 . . . . . . . . . Part Schematics Acquired 2 | . . . . . . . . . 1 . . . . . 1 . . . . . . . . . Parts Damaged . | . . . . . . . . . . . . . . . . . . . . . . . . . Bothacking | -11 -10 -10 -9 -9 -9 -8 -8 -8 -8 -7 -7 -7 -7 -6 -6 -5 -5 -5 -5 -4 -4 -4 -4 -3 ------------ Run | Scr Mat Min Mat Min Exi Min Mat Gar Mat Fac Low Low Dat Pro Fac Fac Gar Fac Gar Fac Gar Fac Gar Res Used RIF Installer 4 | . . . . . . . . 1 . . . . . . . . 1 . . . 1 . 1 . Coupler Efficiency 1 | . . . . . . . . . . . . . . . . . 1 . . . . . . . Threat Obfuscator 1 | . . . . . . . . . . . . . . . . . . . . . . . 1 . Robot Detection 1 | . . . . . . . . . . . . . . . . . . . . . 1 . . . Robots Hacked 68 | . . . . . . . . . 8 2 . 2 . . 9 7 8 13 2 3 3 . 1 10 Non-combat 26 | . . . . . . . . . 6 2 . 2 . . 5 . . 6 . 3 . . . 2 Combat 42 | . . . . . . . . . 2 . . . . . 4 7 8 7 2 . 3 . 1 8 Robot Hacks Applied 66 | . . . . . . . . . 13 4 . 2 . . 7 2 6 14 1 3 3 . 1 10 parse_system 4 | . . . . . . . . . . 1 . 2 . . . . . . . . . . 1 . no_distress 8 | . . . . . . . . . 3 . . . . . . . . 4 . 1 . . . . find_chute 1 | . . . . . . . . . . . . . . . . . . . . 1 . . . . deconstruct_machine 1 | . . . . . . . . . 1 . . . . . . . . . . . . . . . ignore_repairs 2 | . . . . . . . . . 1 . . . . . 1 . . . . . . . . . find_fabricator 1 | . . . . . . . . . . . . . . . . . . 1 . . . . . . drop_inventory 3 | . . . . . . . . . 1 1 . . . . . . . . . . . . . 1 find_recycling 1 | . . . . . . . . . 1 . . . . . . . . . . . . . . . ignore_parts 1 | . . . . . . . . . 1 . . . . . . . . . . . . . . . find_station 1 | . . . . . . . . . . . . . . . . . . . . 1 . . . . release_backups 1 | . . . . . . . . . . . . . . . 1 . . . . . . . . . check_alert 1 | . . . . . . . . . . . . . . . 1 . . . . . . . . . purge_threat 1 | . . . . . . . . . 1 . . . . . . . . . . . . . . . map_route 1 | . . . . . . . . . . . . . . . . . . 1 . . . . . . find_garrison 2 | . . . . . . . . . 1 . . . . . . 1 . . . . . . . . amplify_resonance 1 | . . . . . . . . . . . . . . . . . . . . . . . . 1 disable_weapons 1 | . . . . . . . . . . . . . . . . 1 . . . . . . . . go_dormant 2 | . . . . . . . . . . . . . . . . . . 1 . . 1 . . . overwrite_iff 4 | . . . . . . . . . . . . . . . . . . . . . . . . 4 formatsys_low 5 | . . . . . . . . . 1 1 . . . . 1 . . 1 . . . . . 1 formatsys_high 24 | . . . . . . . . . 2 1 . . . . 3 . 6 6 1 . 2 . . 3 Relay Couplers Released 62 | . . . . . . . . 11 2 . . . . . 7 4 19 . 3 . 8 3 5 . Ejected 10 | . . . . . . . . . . . . . . . 7 . . . . . . 3 . . Machine Destruction 52 | . . . . . . . . 11 2 . . . . . . 4 19 . 3 . 8 . 5 . Attached 33 | . . . . . . . . . 3 2 . . . . 2 1 8 4 2 . 4 2 3 2 Fabnet Peak Effective % 10 | . . . . . . . . . . . . . . 3 3 10 10 10 10 3 3 3 3 . Autooverrided 12 | . . . . . . . . . . . . . . . 2 6 2 1 1 . . . . . Robots Rewired . | . . . . . . . . . . . . . . . . . . . . . . . . . Allies Hacked 4 | . . . . . . . . . . . . . . . . 1 . 1 2 . . . . . Hacks Repelled . | . . . . . . . . . . . . . . . . . . . . . . . . . Allies | -11 -10 -10 -9 -9 -9 -8 -8 -8 -8 -7 -7 -7 -7 -6 -6 -5 -5 -5 -5 -4 -4 -4 -4 -3 -------- Run | Scr Mat Min Mat Min Exi Min Mat Gar Mat Fac Low Low Dat Pro Fac Fac Gar Fac Gar Fac Gar Fac Gar Res Total Allies 56 | . . . . 1 . . . . 4 1 . . . 1 10 8 8 10 2 . 2 . . 9 Largest Group 4 | . . . . 1 1 . . . 3 2 1 1 . 1 4 3 4 4 3 . 1 . . 2 Highest-Rated Group 186 | . . . . 31 31 . . . 40 36 26 26 . 96 90 157 183 186 93 . 49 . . 105 Highest-Rated Ally 137 | . . . . 31 31 . . . 15 26 26 26 . 96 41 54 85 137 85 . 49 . . 58 Total Orders 48 | . . . . . . . . . 1 . 6 6 . 4 4 14 6 6 . . 1 . . . STAY 9 | . . . . . . . . . 1 . 1 2 . . 2 . 1 2 . . . . . . ROAM 1 | . . . . . . . . . . . . . . . . . 1 . . . . . . . FOLLOW 7 | . . . . . . . . . . . 2 1 . . 2 . 1 1 . . . . . . GUARD 3 | . . . . . . . . . . . . . . . . . 2 1 . . . . . . AID 2 | . . . . . . . . . . . . . . . . . . 2 . . . . . . EXPLORE 2 | . . . . . . . . . . . . . . . . 2 . . . . . . . . RETURN 24 | . . . . . . . . . . . 3 3 . 4 . 12 1 . . . 1 . . . Ally Attacks 316 | . . . . . . . . . 21 . . . . 15 35 103 55 48 26 . 2 . . 11 Total Damage 10175 | . . . . . . . . . 483 . . . . 622 1233 3230 1497 1925 774 . 61 . . 350 Kills 63 | . . . . . . . . . 2 . . . . 5 8 22 10 11 4 . . . . 1 Allies Corrupted 5 | . . . . . . . . . . . . 1 . . . 2 1 1 . . . . . . Allies Melted 2 | . . . . . . . . . . . . . . 1 . . . . . . . . . 1 Intel | -11 -10 -10 -9 -9 -9 -8 -8 -8 -8 -7 -7 -7 -7 -6 -6 -5 -5 -5 -5 -4 -4 -4 -4 -3 ------- Run | Scr Mat Min Mat Min Exi Min Mat Gar Mat Fac Low Low Dat Pro Fac Fac Gar Fac Gar Fac Gar Fac Gar Res Robot Analysis Total 3 | . 1 . 2 . . . . . . . . . . . . . . . . . . . . . Derelict Logs Recovered 10 | . . 1 . 1 . . . . . . 2 3 . 3 . . . . . . . . . . Drone Launches 60 | . . . . . . . . . . . 12 3 . 4 . 14 3 1 5 . 18 . . . Drone Recoveries 49 | . . . . . . . . . . . 12 3 . 4 . 12 2 1 5 . 10 . . . Decoded 0b10 Intel 44 | . . . . . . . . . . . . . . . 40 4 . . . . . . . . Traps 27 | . . . . . . . . . . . . . . . 24 3 . . . . . . . . Emergency Access 15 | . . . . . . . . . . . . . . . 14 1 . . . . . . . . Exits 2 | . . . . . . . . . . . . . . . 2 . . . . . . . . . Exploration | -11 -10 -10 -9 -9 -9 -8 -8 -8 -8 -7 -7 -7 -7 -6 -6 -5 -5 -5 -5 -4 -4 -4 -4 -3 ------------- Run | Scr Mat Min Mat Min Exi Min Mat Gar Mat Fac Low Low Dat Pro Fac Fac Gar Fac Gar Fac Gar Fac Gar Res Turns Passed 26243 | 85 1571 719 1969 1174 424 143 1037 3499 1977 812 841 814 78 866 4230 1058 1071 2223 256 254 619 31 161 331 Spaces Moved 16543 | 76 808 336 812 601 319 24 623 1453 950 604 646 795 87 568 2632 842 943 1533 305 353 527 44 200 462 Core 736 | 2 . . . . . . . . . . . . . . . . . . 13 27 26 44 200 424 Treads 1081 | . . . . . . . 112 841 126 . . . . . . . . . . . . . . 2 Legs 12746 | . 622 336 812 601 319 24 511 612 805 604 646 795 87 568 2632 842 943 951 . . . . . 36 Wheels 666 | 74 186 . . . . . . . 19 . . . . . . . . 387 . . . . . . Hover 1289 | . . . . . . . . . . . . . . . . . . 195 292 326 476 . . . Flight 25 | . . . . . . . . . . . . . . . . . . . . . 25 . . . Fastest Speed 35 | 50 100 190 120 190 100 100 90 120 113 90 90 54 90 54 54 60 60 55 50 50 35 50 50 50 Average Speed 120 | 98 155 205 185 190 131 100 129 209 145 109 110 92 90 87 89 87 88 108 57 59 85 50 50 57 Slowest Speed 680 | 100 190 260 190 190 260 100 240 680 312 186 196 106 90 90 100 176 90 270 121 150 130 50 50 162 Overloaded Moves 228 | . . . . . . . . 2 . . . 45 . 37 37 66 32 9 . . . . . . Propulsion Burnouts . | . . . . . . . . . . . . . . . . . . . . . . . . . Robots Hopped . | . . . . . . . . . . . . . . . . . . . . . . . . . Cave-ins Triggered . | . . . . . . . . . . . . . . . . . . . . . . . . . Exploration Rate (%) 51 | 4 90 88 74 98 75 12 40 81 56 15 68 64 70 64 46 23 90 29 72 9 57 2 41 16 Regions Visited 24 Branch Regions 8 Pre-discovered Areas 6 | . . 1 . . . . 1 . . . 1 1 1 1 . . . . . . . . . . Known Exits Taken 9 | . . . . . . 1 1 . 1 . . 1 . . 1 1 . 1 . 1 . 1 . . Unknown Exits Taken 10 | 1 1 1 1 1 1 . . . . 1 1 . 1 1 . . . . . . . . . . Scrap Searched 9 | . . . . 2 . . . . . . 1 2 . 4 . . . . . . . . . . Spaces Dug 23 | . . . . . . . . 5 1 . 1 . . . 9 4 . 3 . . . . . . Terrain Destroyed 623 | . 16 57 51 . . . 106 55 25 . 1 5 . 3 9 4 78 3 74 . 136 . . . Melee 19 | . . . . . . . . 1 1 . 1 . . . 9 4 . 3 . . . . . . Projectile 24 | . . . . . . . . 1 15 . . 5 . 3 . . . . . . . . . . AOE 580 | . 16 57 51 . . . 106 53 9 . . . . . . . 78 . 74 . 136 . . . Terrain Rammed . | . . . . . . . . . . . . . . . . . . . . . . . . . Walls Destroyed . | . . . . . . . . . . . . . . . . . . . . . . . . . Machines Disabled . | . . . . . . . . . . . . . . . . . . . . . . . . . Actions | -11 -10 -10 -9 -9 -9 -8 -8 -8 -8 -7 -7 -7 -7 -6 -6 -5 -5 -5 -5 -4 -4 -4 -4 -3 --------- Run | Scr Mat Min Mat Min Exi Min Mat Gar Mat Fac Low Low Dat Pro Fac Fac Gar Fac Gar Fac Gar Fac Gar Res Total 21689 | 82 1022 353 1079 620 322 143 764 1737 1410 717 765 848 86 925 4415 1061 1149 1932 369 396 662 51 258 523 Wait 3201 | . 107 . 98 8 . 120 44 67 259 36 100 14 . 336 1572 100 115 148 4 11 12 . 30 20 Move 16515 | 75 807 335 811 600 318 23 622 1452 949 603 645 794 86 567 2631 841 941 1532 303 352 525 43 198 462 Hop . | . . . . . . . . . . . . . . . . . . . . . . . . . Pick Up 198 | . 18 1 11 . . . 7 34 13 7 3 . . 3 26 13 21 22 5 4 6 2 . 2 Fast Attach 142 | 6 7 . 4 2 2 . 2 25 13 2 . 1 . . 3 8 1 26 6 6 14 3 4 7 Attach 106 | . 3 . 5 . . . 3 4 2 7 2 . . 1 15 13 8 20 7 5 5 2 . 4 Detach 30 | . . . 1 . . . 1 1 . 2 1 . . . 1 4 . 9 5 2 2 . . 1 Swap 240 | 1 8 6 22 . . . 24 24 31 17 11 10 . 6 32 13 6 25 . 2 2 . . . Drop 235 | . 14 1 20 2 2 . 12 26 30 7 2 1 . 3 20 13 11 43 9 5 10 1 . 3 Fire 488 | . 54 9 103 4 . . 25 82 74 22 . 16 . 9 11 5 12 14 2 3 23 . . 20 Melee 347 | . . . . 4 . . 21 10 36 5 1 6 . . 84 51 17 85 18 6 2 . 1 . Ram 9 | . 1 . . . . . . . . . . . . . . . . 4 1 . . . 3 . Kick 25 | . 3 1 4 . . . 3 . 3 8 . . . . 1 . . 2 . . . . . . Crush 3 | . . . . . . . . . . . . . . . . . . . . . . . . 3 Escape Stasis 121 | . . . . . . . . 12 . . . . . . . . 17 . 9 . 61 . 22 . Rewire 5 | . . . . . . . . . . 1 . . . . 1 . . 2 . . . . . 1 Trap 24 | . . . . . . . . . . . . 6 . . 18 . . . . . . . . . Miscellaneous . | . . . . . . . . . . . . . . . . . . . . . . . . . Route ------- -11/Scrapyard -10/Materials (discovered 3 exits: *Mat x2 / *Min) -10/Mines -9/Materials (discovered 5 exits: *Mat x3 / [*Min x2]) -9/Mines (discovered 3 exits: *Mat x2 / *Exi) -9/Exiles -8/Mines -8/Materials -8/Garrison (discovered 3 exits: *Mat x3) -8/Materials (discovered 3 exits: *Fac x3) -7/Factory (discovered 3 exits: Sto / *Low x2) -7/Lower Caves -7/Lower Caves (discovered 2 exits: *Fac / *Dat) -7/Data Miner -6/Proximity Caves -6/Factory (discovered 5 exits: *Fac x2 / *Low / Ext x2) -5/Factory -5/Garrison (discovered 3 exits: *Fac x3) -5/Factory (discovered 3 exits: Upp x2 / Gar) -5/Garrison (discovered 2 exits: *Fac x2) -4/Factory -4/Garrison -4/Factory -4/Garrison -3/Research History --------- Turn | Location | Event 10 | -11/Scrapyard | Discovered new exit (range 16) 86 | -11/Scrapyard | Entered Materials 240 | -10/Materials | Discovered new exit (range 3) 329 | -10/Materials | Build established: Mutant 472 | -10/Materials | Discovered new exit (range 14) 644 | -10/Materials | Core integrity fell below 50% 845 | -10/Materials | Discovered new exit (range 16) 1657 | -10/Materials | Entered Mines 2068 | -10/Mines | Joined a pair of Derelicts in attacking an 0b10 outpost 2168 | -10/Mines | Found the Drone Emporium 2177 | -10/Mines | Found Prototype Device 2178 | -10/Mines | Identified Sensor Drone Bay 2349 | -10/Mines | Discovered new exit (range 9) 2376 | -10/Mines | Entered Materials 2376 | -9/Materials | Evolved 2 slots: Propulsion x1, Utility x1 2804 | -9/Materials | Identified exit to Materials 2804 | -9/Materials | Central database locked down 2890 | -9/Materials | Discovered new exit (range 15) 3143 | -9/Materials | Destroyed 8 combat bots 3201 | -9/Materials | Build established: Scavenger-Mutant 3731 | -9/Materials | Core integrity fell below 50% 4263 | -9/Materials | Discovered new exit (range 8) 4345 | -9/Materials | Entered Mines 5012 | -9/Mines | Discovered exit to Materials (range 5) 5041 | -9/Mines | A weapon hastily lodged in a ceiling crevice suddenly fell to the ground 5273 | -9/Mines | Deemed a non-threat by the Exiles lab entrance 5275 | -9/Mines | Discovered new exit (range 5) 5315 | -9/Mines | Discovered exit to Materials (range 7) 5319 | -9/Mines | Received a Mining Laser from a helpful Derelict 5519 | -9/Mines | Entered Exiles 5519 | -9/Exiles | Accompanied by 1 ally 5565 | -9/Exiles | Met 8R-AWN 5597 | -9/Exiles | Met EX-HEX 5649 | -9/Exiles | Met EX-BIN 5673 | -9/Exiles | Aligned with FarCom system 5675 | -9/Exiles | Given EX-Vault access code 5719 | -9/Exiles | Opened EX-Vault 5734 | -9/Exiles | Found Potential Leg 5737 | -9/Exiles | Found Potential Leg 5759 | -9/Exiles | Warned to stay clear of 0b10 Research branches 5790 | -9/Exiles | Met EX-DEC 5857 | -9/Exiles | Visited The Gauntlet 5934 | -9/Exiles | Discovered new exit (range 10) 5943 | -9/Exiles | Left Exiles lab with Potential Leg 5943 | -9/Exiles | Entered Mines 6024 | -8/Mines | Build established: Mutant 6080 | -8/Mines | Discovered exit to Materials (range 7) 6086 | -8/Mines | Entered Materials 6086 | -8/Materials | Evolved 2 slots: Utility x2 6996 | -8/Materials | Identified exit to Garrison 7123 | -8/Materials | Entered Garrison 7124 | -8/Garrison | Build established: Hacker-Mutant 7135 | -8/Garrison | Installed Relay Interface Framework 7286 | -8/Garrison | Triggered checkpoint 7377 | -8/Garrison | Garrison Relay disabled 7474 | -8/Garrison | Triggered checkpoint 7476 | -8/Garrison | Triggered checkpoint 7729 | -8/Garrison | Lost 3 parts (1p1n1w) 7732 | -8/Garrison | Triggered checkpoint 7748 | -8/Garrison | Triggered checkpoint 7775 | -8/Garrison | Destroyed 7 combat bots 7832 | -8/Garrison | Discovered new exit (range 8) 7879 | -8/Garrison | Build established: Scavenger-Mutant 7979 | -8/Garrison | Spotted B-75 Beast 7980 | -8/Garrison | Spotted B-75 Beast 8826 | -8/Garrison | Discovered new exit (range 15) 8942 | -8/Garrison | Triggered checkpoint 8970 | -8/Garrison | Core integrity fell below 50% 9025 | -8/Garrison | Garrison Relay disabled 9333 | -8/Garrison | Discovered new exit (range 12) 9676 | -8/Garrison | Triggered checkpoint 9755 | -8/Garrison | Garrison Relay disabled 10252 | -8/Garrison | Triggered checkpoint 10622 | -8/Garrison | Entered Materials 11042 | -8/Materials | Build established: Hacker-Mutant 12143 | -8/Materials | Build established: Bothacker-Mutant 12301 | -8/Materials | Central database locked down 12333 | -8/Materials | Identified exit to Factory 12599 | -8/Materials | Entered Factory 12599 | -7/Factory | Accompanied by 1 ally 12599 | -7/Factory | Evolved 2 slots: Utility x2 12600 | -7/Factory | Discovered new exit (range 15) 12600 | -7/Factory | Identified exit to Storage 12974 | -7/Factory | P-60 Hacker assimilated allied Technician 3b 12987 | -7/Factory | Fabricated VSS Leg? 13285 | -7/Factory | Discovered new exit (range 14) 13411 | -7/Factory | Entered Lower Caves 13411 | -7/Lower Caves | Accompanied by 1 ally 13493 | -7/Lower Caves | Learned 12 Factory zone layouts 13493 | -7/Lower Caves | Spotted B-75 Beast 13553 | -7/Lower Caves | Encountered a Warlord checkpoint 13666 | -7/Lower Caves | Build established: Mutant 13888 | -7/Lower Caves | Learned location of Zion (-6) 14206 | -7/Lower Caves | Discovered new exit (range 10) 14252 | -7/Lower Caves | Entered another Lower Caves area 14252 | -7/Lower Caves | Accompanied by 1 ally 14282 | -7/Lower Caves | Discovered new exit (range 3) 14399 | -7/Lower Caves | Identified exit to Data Miner 14962 | -7/Lower Caves | Learned location of 1 exit from Factory 14970 | -7/Lower Caves | Learned location of Extension (-6) 15066 | -7/Lower Caves | Entered Data Miner 15066 | -7/Data Miner | Discovered new exit (range 7) 15084 | -7/Data Miner | Met Data Miner 15101 | -7/Data Miner | Learned location of Section 7 (-3) 15101 | -7/Data Miner | Acquired the access code to Warlord's prototype stash 15120 | -7/Data Miner | Received God Mode back door access code from Data Miner 15144 | -7/Data Miner | Entered Proximity Caves 15229 | -6/Proximity Caves | Learned Factory security intel 15296 | -6/Proximity Caves | Learned 4 Factory zone layouts 15781 | -6/Proximity Caves | Escorted by Enhanced Grunt 15998 | -6/Proximity Caves | Discovered new exit (range 15) 16010 | -6/Proximity Caves | Entered Factory 16010 | -6/Factory | Evolved 2 slots: Utility x2 16011 | -6/Factory | Identified exit to Lower Caves 16012 | -6/Factory | Identified exit to Extension 16062 | -6/Factory | Incoming investigation squad redirected 16289 | -6/Factory | Build established: Derelict-Mutant 16639 | -6/Factory | Build established: Hacker-Mutant 16672 | -6/Factory | Fabricated Microactuators? 17243 | -6/Factory | Identified exit to Factory 17823 | -6/Factory | Build established: Derelict-Mutant 18190 | -6/Factory | Incoming investigation squad redirected 18285 | -6/Factory | Fabricated O-24 Administrator? 18472 | -6/Factory | Build established: Hacker-Mutant 18779 | -6/Factory | Incoming investigation squad redirected 18789 | -6/Factory | Garrison activated, responded to threat 18983 | -6/Factory | Incoming investigation squad redirected 19082 | -6/Factory | Build established: Bothacker-Mutant 19524 | -6/Factory | Discovered exit to Factory (range 16) 19628 | -6/Factory | Build established: Mutant 19740 | -6/Factory | Incoming investigation squad redirected 19766 | -6/Factory | Incoming investigation squad redirected 19771 | -6/Factory | Fabricated Imp. VSS Leg? 19835 | -6/Factory | Fabricated Combat Drone Bay? 19873 | -6/Factory | P-60 Hacker assimilated allied Processor 5a 19930 | -6/Factory | Lost 4 parts (1n3u) 20240 | -6/Factory | Entered another Factory area 20240 | -5/Factory | Evolved 2 slots: Power x1, Propulsion x1 20451 | -5/Factory | Incoming investigation squad redirected 20585 | -5/Factory | Fabricated Lgt. Regenerative Plating (x1) 20806 | -5/Factory | Build established: Machinist-Mutant 20827 | -5/Factory | Garrison activated, responded to threat 20892 | -5/Factory | Local machine network offline 21242 | -5/Factory | Cargo convoy interrupted 21259 | -5/Factory | Incoming assault squad redirected 21263 | -5/Factory | System corruption reached 10% 21279 | -5/Factory | Garrison activated, responded to threat 21296 | -5/Factory | Identified exit to Garrison 21298 | -5/Factory | Entered Garrison 21314 | -5/Garrison | Triggered checkpoint 21316 | -5/Garrison | Garrison Relay disabled 21327 | -5/Garrison | Lost 3 parts (3u) 21364 | -5/Garrison | Spotted B-75 Beast 21392 | -5/Garrison | Assimilated Beast 6a with formatsys_high 21422 | -5/Garrison | Local machine network offline 21424 | -5/Garrison | Triggered checkpoint 21424 | -5/Garrison | Triggered checkpoint 21425 | -5/Garrison | Triggered checkpoint 21533 | -5/Garrison | Triggered checkpoint 21567 | -5/Garrison | Garrison Relay disabled 21598 | -5/Garrison | Discovered new exit (range 11) 21702 | -5/Garrison | Triggered checkpoint 21755 | -5/Garrison | Discovered new exit (range 9) 21780 | -5/Garrison | Triggered checkpoint 21790 | -5/Garrison | Garrison Relay disabled 21944 | -5/Garrison | Discovered new exit (range 15) 21962 | -5/Garrison | Expanded RIF knowledge: Coupler Efficiency 22006 | -5/Garrison | Triggered checkpoint 22064 | -5/Garrison | Garrison Relay disabled 22099 | -5/Garrison | Build established: Bothacker-Mutant 22334 | -5/Garrison | Phase Generator disabled 22369 | -5/Garrison | Entered Factory 22369 | -5/Factory | Accompanied by 2 allies 22411 | -5/Factory | Incoming investigation squad redirected 22498 | -5/Factory | Identified exit to Upper Caves 23115 | -5/Factory | Lost 4 parts (1p2n1u) 23683 | -5/Factory | Lost 3 parts (2n1w) 23981 | -5/Factory | Build established: Scavenger-Mutant 24021 | -5/Factory | Core integrity fell below 50% 24571 | -5/Factory | Allied Derelicts emerged from ambush trap array 24587 | -5/Factory | Identified exit to Garrison 24592 | -5/Factory | Entered Garrison 24592 | -5/Garrison | Accompanied by 3 allies 24635 | -5/Garrison | Phase Generator disabled 24694 | -5/Garrison | Local machine network offline 24699 | -5/Garrison | Garrison Relay disabled 24700 | -5/Garrison | Triggered checkpoint 24709 | -5/Garrison | Lost 5 parts (1p4u) 24734 | -5/Garrison | Spotted B-75 Beast 24737 | -5/Garrison | Assimilated Beast 6b with formatsys_high 24742 | -5/Garrison | Triggered checkpoint 24758 | -5/Garrison | Discovered new exit (range 8) 24798 | -5/Garrison | Triggered checkpoint 24819 | -5/Garrison | Core integrity fell below 20% 24819 | -5/Garrison | Discovered new exit (range 10) 24836 | -5/Garrison | Triggered checkpoint 24848 | -5/Garrison | Entered Factory 24848 | -4/Factory | Evolved 2 slots: Propulsion x2 24863 | -4/Factory | Lost 4 parts (2n1u1w) 24928 | -4/Factory | Incoming investigation squad redirected 24967 | -4/Factory | Build established: Hacker-Mutant 25038 | -4/Factory | Incoming investigation squad redirected 25078 | -4/Factory | Garrison activated, responded to threat 25097 | -4/Factory | Identified exit to Garrison 25102 | -4/Factory | Entered Garrison 25105 | -4/Garrison | Expanded RIF knowledge: Robot Detection 25114 | -4/Garrison | Triggered checkpoint 25187 | -4/Garrison | Triggered checkpoint 25236 | -4/Garrison | Destroyed 7 combat bots 25260 | -4/Garrison | Garrison Relay disabled 25617 | -4/Garrison | Triggered checkpoint 25626 | -4/Garrison | Triggered checkpoint 25642 | -4/Garrison | Triggered checkpoint 25666 | -4/Garrison | Lost 7 parts (3n3u1w) 25684 | -4/Garrison | Discovered new exit (range 19) 25686 | -4/Garrison | Triggered checkpoint 25693 | -4/Garrison | Garrison Relay disabled 25711 | -4/Garrison | Core integrity fell below 50% 25721 | -4/Garrison | Entered Factory 25738 | -4/Factory | Lost 6 parts (3n1u2w) 25738 | -4/Factory | Identified exit to Garrison 25752 | -4/Factory | Entered Garrison 25755 | -4/Garrison | Expanded RIF knowledge: Threat Obfuscation 25832 | -4/Garrison | Triggered checkpoint 25857 | -4/Garrison | Core integrity fell below 20% 25872 | -4/Garrison | Spotted B-86 Titan 25890 | -4/Garrison | Lost 7 parts (1n5u1w) 25892 | -4/Garrison | Triggered checkpoint 25892 | -4/Garrison | Triggered checkpoint 25909 | -4/Garrison | Discovered new exit (range 8) 25913 | -4/Garrison | Entered Research 25913 | -3/Research | Evolved 2 slots: Propulsion x2 26086 | -3/Research | Incoming investigation squad redirected 26137 | -3/Research | Build established: Mutant 26224 | -3/Research | P-80 Master assimilated allied G-67 Veteran 26238 | -3/Research | Core integrity fell below 50% 26242 | -3/Research | Core integrity fell below 20% 26244 | -3/Research | Destroyed by H-77 Assassin with High-powered Shotgun Last Messages --------------- 26236_ P-80 Master repels hacking attempt. 26236_ K-01 Serf collects debris. 26236_ U-05 Engineer lays Concrete. 26237_ Relay Coupler [Grunt] destroyed. 26237_ P-80 Master repels hacking attempt. 26237_ U-05 Engineer lays Concrete. 26237_ Adv. Remote Datajack destroyed. 26237_ Penetrated by Slug. 26237_ Slug penetrates Wall. 26237_ Penetrated by Slug. 26237_ Slug penetrates Wall. 26237_ Knocked back. 26238_ U-05 Engineer lays Concrete. 26238_ Relay Coupler [Grunt] destroyed. 26238_ U-05 Engineer lays Concrete. 26239_ R-10 Processor collects Flexi-carbon Leg. 26240_ Relay Coupler [Grunt] destroyed. 26240_ K-01 Serf collects debris. 26241_ Knocked back. 26244_ Penetrated by Slug. Map ----- +----------------------------------------------------+ | ?????????????????????????????????????????????????? | | ?????????????????????????????????????????????????? | | ?????????????????????????????????????????????????? | | ?????????????????????????????????????????????????? | | ?????????????????????????????????????????????????? | | ?????????????????????????????????????????????????? | | ?????????????????????????????????????????????????? | | ?????????????????????????????????????????????????? | | ?????????????????#######?????????????????????????? | | ????????????????? #?????????????????????????? | | ?????????????????? #?????????????????????????? | | ?????????????????? ##????????????????????????? | | ?????????????????## ##???????????????????????? | | ????#########????# [= #???????????????????????? | | ????#= #????# [ %* #???????????????????????? | | ????# ########%= [ ######??????????????????? | | ????# # %[ % #??????????????????? | | ????# [ / H= #??????????????????? | | ????# %*# s # #??????????????????? | | ????# ! ###+####s # #??????????????????? | | ????# %= # # # ? ???????????????????? | | ????###/##### ! ! #p # ? ????????????????????? | | ####### ##### g ;##;######+######+####????? | | !! !/ =! #gp % =hk ??? | | !! % %# ! # [%g%p p k k??? | | ! + # % @g! p u k ??? | | !################## h ##########+##??????? | | # #?????????? #??????????????????? | | s# #???????????x#??????????????????? | | """ # !! #????????x???#??????????????????? | | """ # !! #???????????????????????????????? | | """ #! !!! #???????????????????????????????? | | # #???????????????????????????????? | | + #???????????????????????????????? | | # #???????????????????????????????? | | =*! # #???????????????????????????????? | | =*! # #???????????????????????????????? | | *!! # #???????????????????????????????? | | #########???????????????????Y???????????? | | #???????????????????????????????????????? | | #???????????????????????????????????????? | | ### #???????????????????????????????????????? | | #?# #???????????????????????????????????????? | | #?# ########????????????????????????????????? | | #?# #????????????????????????????????? | | #?# #????????????????????????????????? | | #?# #????????????????????????????????? | | #?# #????????????????????????????????? | | ############ #????????????????????????????????? | | # #????????????????????????????????? | +----------------------------------------------------+ Best States ------------- Heat Dissipation 59 Energy Generation 45 Energy Capacity 550 Matter Stores 300 Matter Capacity 300 Sight Range 22 Terrain Scan Density 10 Jamming Range 14 Cloak Strength 2 Additional Mass Support 9 Armor Coverage 600 Resistance: KI 30 Resistance: TH 20 Resistance: EX 50 Resistance: EM 25 Propulsion Shielding 66 Utility Shielding 66 Melee Speed Boost 50 Phase Shifting 10 Evasion (%) 73 Recoil Reduction 3 Kinecelleration 30 Offensive Hacking 20 Defensive Hacking 10 Relay Coupler Types 4 Relay Coupler Value 222 Authchip Count 1 Item Schematics ----------------- Arm. Wheel | -9/Materials | Extracted Disposable Heat Sink | -9/Materials | Extracted Sml. Matter Pod | -9/Materials | Extracted Hcp. Storage Unit | -9/Materials | Extracted Imp. Light Cannon | -9/Materials | Extracted Lrg. Storage Unit | -9/Materials | Extracted Salvage Targeting Computer | -9/Materials | Extracted Hvy. Assault Cannon | -8/Materials | Hacked VSS Leg | -8/Materials | Hacked Scythe | -8/Materials | Hacked Imp. Signal Interpreter | -8/Materials | Scanalyzed Combat Drone Bay | -7/Data Miner | Free Lgt. Regenerative Plating | -7/Data Miner | Free Cld. Cesium-ion Thruster | -7/Data Miner | Free Gravity Neutralizer | -7/Data Miner | Free Gui. EMP Blaster | -7/Data Miner | Free Imp. Corruption Screen | -7/Data Miner | Free Gyrokinetic Inverter | -7/Data Miner | Free Adv. Plasma Cannon | -7/Data Miner | Free Microactuators | -6/Factory | Hacked Power Sword | -6/Factory | Hacked Imp. Component Analysis Suite | -6/Factory | Hacked Cloaking Device | -6/Factory | Hacked Arm. Leg | -6/Factory | Scanalyzed Imp. Hacking Suite | -6/Factory | Hacked Imp. VSS Leg | -6/Factory | Hacked Drone Bay | -6/Factory | Hacked Q-thruster | -4/Factory | Hacked Robot Schematics ------------------ M-28 Smith | -7/Data Miner | Free H-55 Commando | -7/Data Miner | Free G-50 Soldier | -7/Data Miner | Free O-24 Administrator | -7/Data Miner | Free R-10 Processor | -7/Data Miner | Free Fabricated ------------ VSS Leg | x2 | -7/Factory Microactuators | x2 | -6/Factory O-24 Administrator | x1 | -6/Factory | Authchip Imp. VSS Leg | x2 | -6/Factory Combat Drone Bay | x1 | -6/Factory Lgt. Regenerative Plating | x1 | -5/Factory Alien Tech Used ----------------- None Achievements -------------- Ambidextrous Challenges ------------ None Game ------ Seed NuclearMiniNukerbomber Manual? 0 Play Time 07:10:44 Cumulative 95.9 hours Start 2022.05.19 @ 12:12:56 End 2022.05.19 @ 23:28:03 Sessions 1 Manual Loads 0 Difficulty Rogue Special Mode None Game No. 37 Rogue 37 Adventurer 0 Explorer 0 Win Type - Total 1 Types 1/0/0/0/0/0/0/0/0 Lore% 31 Gallery% 58 Achievement% 69 Wizard Run 0 Options --------- ASCII 0 Keyboard 0 Movement Numpad Keybinds 0 Fullscreen 1 Font 24/Smallcaps Map View 76x50 Tactical HUD 1 Map Filters NONE Filters LOW_CONTRAST(13,24,33) Steam 1 RUN: 546ea9bd-18e5-458c-94e6-04382bdeb66a